bitfinex-derivatives/quotes_ETHF0:USTF0_20250708
["timestamp","ask_amount","ask_price","bid_price","bid_amount"]
[1751938701159,1.47832,2535.7,2535.6,2.11343]
[1751938701363,1.47832,2535.7,2535.6,1.3248]
[1751938701761,1.47832,2535.7,2535.6,2.11345]
[1751938704065,1.47832,2535.7,2535.6,1.3093]
[1751938704763,1.47832,2535.7,2535.6,1.44065]
[1751938705065,1.47832,2535.7,2535.6,2.09795]
[1751938707366,1.47832,2535.7,2535.6,1.3093]
[1751938707767,1.47832,2535.7,2535.6,2.09795]
[1751938708663,0.78856,2535.9,2535.6,4.9808776]
[1751938708863,0.78854,2536.1,2536.0,0.78851]
[1751938709061,1.47824,2536.1,2536.0,2.5714276]
[1751938709267,1.47824,2536.1,2535.9,0.78854]
[1751938709268,0.78856,2535.9,2535.8,2.8829276]
[1751938709462,0.78862,2535.7,2535.6,0.652]
[1751938709669,3.6214276,2535.7,2535.1,4.70836129]
[1751938709870,0.78878,2535.2,2535.1,0.7888]
[1751938710167,0.78878,2535.2,2535.1,1.44608]
[1751938712774,0.78876,2535.3,2535.2,0.78874]
[1751938713069,1.97164,2535.6,2535.2,0.78874]
[1751938713276,0.78874,2535.4,2535.3,0.78872]
[1751938713578,0.78874,2535.3,2535.2,2.41485]
[1751938714874,1.47844,2535.3,2535.2,2.41485]
[1751938715175,1.47844,2535.3,2535.2,0.6573]
[1751938715478,0.78878,2535.2,2535.1,0.78879]
[1751938715774,1.47848,2535.2,2535.1,1.44609]
[1751938715968,1.47848,2535.2,2535.1,2.78219]
[1751938716174,0.78881,2535.1,2535.0,0.6856]
[1751938716375,1.47851,2535.1,2535.0,2.13173]
[1751938716766,1.47851,2535.1,2535.0,0.6856]
[1751938717476,1.47851,2535.1,2535.0,1.3429]
[1751938717976,2.49611,2535.1,2535.0,0.6573]
[1751938718375,1.47851,2535.1,2535.0,1.44614]
[1751938719275,0.78881,2535.2,2535.1,0.78878]
[1751938719476,1.97181,2535.4,2535.2,0.78876]
[1751938719477,0.78878,2535.3,2535.2,0.78876]
[1751938719676,1.47848,2535.3,2535.2,5.6455876]
[1751938719878,0.78878,2535.3,2535.2,5.6455876]
[1751938720078,1.47848,2535.3,2535.2,5.6455876]
[1751938720382,0.78878,2535.3,2535.2,5.6455876]
[1751938720782,1.47848,2535.3,2535.2,5.6455876]
[1751938721283,2.98915,2535.8,2535.2,4.8568276]
[1751938721587,0.78868,2535.6,2535.5,0.78866]
[1751938721881,1.47838,2535.6,2535.5,2.0137]
[1751938723984,1.47838,2535.6,2535.5,1.3564]
[1751938724181,0.78868,2535.5,2535.4,0.78869]
[1751938724383,1.47838,2535.5,2535.4,0.6573]
[1751938725085,2.49598,2535.5,2535.4,0.6573]
[1751938725480,0.78874,2535.3,2535.2,0.78876]
[1751938725685,1.47844,2535.3,2535.2,0.78876]
[1751938726080,1.47844,2535.3,2535.2,1.44606]
[1751938728686,1.47844,2535.3,2535.2,0.6573]
[1751938729189,1.47844,2535.3,2535.2,1.44608]
[1751938729683,1.47844,2535.3,2535.2,0.6573]
[1751938729893,0.78887,2535.0,2534.9,0.78886]
[1751938730185,1.48137,2535.0,2534.9,1.44616]
[1751938730379,1.48137,2535.0,2534.9,2.74986]
[1751938730983,0.78884,2535.1,2535.0,0.78881]
[1751938731184,1.48134,2535.1,2535.0,3.73331]
[1751938731382,0.78884,2535.1,2535.0,3.73331]
[1751938731787,1.48134,2535.1,2535.0,3.73331]
[1751938731984,0.78884,2535.1,2535.0,5.6474376]
[1751938732184,0.78877,2535.3,2535.2,0.78875]
[1751938732381,0.6925,2535.4,2535.3,4.3497676]
[1751938732586,0.6925,2535.4,2535.3,3.3748676]
[1751938733184,0.6925,2535.4,2535.3,4.6785676]
[1751938733380,0.7887,2535.5,2535.4,0.78868]
[1751938733583,13.03767,2535.6,2535.5,0.78868]
[1751938733783,9.83617,2535.6,2535.5,0.78868]
[1751938734287,9.14367,2535.6,2535.5,0.78868]
[1751938734484,0.78868,2535.5,2535.4,2.06899]
[1751938736388,1.48118,2535.5,2535.4,3.44199]
[1751938737690,0.6925,2535.5,2535.4,3.44199]
[1751938737880,1.48118,2535.5,2535.4,4.41689]
[1751938739288,1.48118,2535.5,2535.4,3.44199]
[1751938742687,1.48118,2535.5,2535.4,2.6533]
[1751938743084,1.48118,2535.5,2535.4,1.373]
[1751938743290,2.47098,2535.5,2535.4,1.373]
[1751938743489,1.48118,2535.5,2535.4,2.16171]
[1751938745293,0.6925,2535.5,2535.4,4.46861]
[1751938745493,1.48118,2535.5,2535.4,4.46861]
[1751938745692,1.48118,2535.5,2535.4,3.49371]
[1751938746497,1.48118,2535.5,2535.4,4.46861]
[1751938747399,1.48118,2535.5,2535.4,3.49371]
[1751938748794,2.47098,2535.5,2535.4,2.16171]
[1751938748989,1.48118,2535.5,2535.4,2.16171]
[1751938752293,1.48118,2535.5,2535.4,1.373]
[1751938752598,0.78881,2535.1,2535.0,4.72443519]
[1751938752794,0.78884,2535.0,2534.9,4.72443519]
[1751938753001,1.48134,2535.0,2534.9,5.39643519]
[1751938753699,1.48134,2535.0,2534.9,0.672]
[1751938754090,0.7889,2534.8,2534.7,4.72443519]
[1751938754293,0.78899,2534.5,2534.4,6.69454399]
[1751938754497,0.9898,2535.2,2534.5,1.9141276]
[1751938754797,0.78881,2535.1,2535.0,1.9141276]
[1751938755002,0.9898,2535.5,2535.0,1.9141276]
[1751938755292,1.60971704,2535.4,2535.3,1.9141276]
[1751938755498,3.09094704,2535.4,2535.3,2.7028676]
[1751938756193,3.82878692,2535.4,2535.3,2.7028676]
[1751938756393,0.78874,2535.3,2535.2,2.16496]
[1751938756593,2.39845704,2535.3,2535.2,2.16496]
[1751938757189,1.60971704,2535.3,2535.2,2.16496]
[1751938757497,1.48124,2535.4,2535.3,0.78874]
[1751938757696,3.08973613,2535.4,2535.3,0.78874]
[1751938757992,2.39723613,2535.4,2535.3,0.78874]
[1751938758196,3.08973613,2535.4,2535.3,1.46074]
[1751938758893,3.08973613,2535.4,2535.3,0.672]
[1751938760000,0.78874,2535.3,2535.2,1.3762]
[1751938760196,1.44814,2535.3,2535.2,2.0497]
[1751938760994,1.44814,2535.3,2535.2,2.83848]
[1751938761394,1.44814,2535.3,2535.2,2.0497]
[1751938762699,0.78878,2535.2,2535.1,2.6177276]
[1751938762899,1.44818,2535.2,2535.1,3.2912276]
[1751938763495,1.44818,2535.2,2535.1,1.3771]
[1751938763900,1.44818,2535.2,2535.1,0.7036]
[1751938764302,1.44818,2535.2,2535.1,1.3771]
[1751938764800,1.44818,2535.2,2535.1,2.16591]
[1751938764997,1.0283,2535.7,2535.1,4.2551276]
[1751938765304,2.39745631,2535.6,2535.5,2.7028076]
[1751938765596,0.78865,2535.6,2535.5,3.3763076]
[1751938766103,0.78865,2535.6,2535.5,5.3721076]
[1751938766698,1.44805,2535.6,2535.5,5.3721076]
[1751938769301,11.85373,2535.9,2535.6,0.78862]
[1751938769302,0.78863,2535.7,2535.6,0.78862]
[1751938769504,0.78856,2535.9,2535.8,0.78858]
[1751938769699,0.78856,2535.9,2535.8,0.6735]
[1751938769904,0.6594,2535.9,2535.8,1.46209]
[1751938770108,0.6594,2535.9,2535.8,5.7050176]
[1751938770498,1.44796,2535.9,2535.8,5.7050176]
[1751938771206,1.44796,2535.9,2535.8,4.9164276]
[1751938772007,1.44796,2535.9,2535.8,5.7050176]
[1751938772206,0.6594,2535.9,2535.8,5.7050176]
[1751938772505,1.97108,2536.4,2536.0,0.78851]
[1751938772506,0.78852,2536.1,2536.0,0.78851]
[1751938772711,1.44792,2536.1,2536.0,2.5876276]
[1751938772910,1.44792,2536.1,2536.0,3.3761576]
[1751938773110,1.44792,2536.1,2536.0,4.6554576]
[1751938773301,1.44792,2536.1,2536.0,3.8669276]
[1751938774115,9.12941,2536.4,2536.3,0.78843]
[1751938774311,0.78845,2536.3,2536.2,2.7025676]
[1751938774615,0.78853,2536.0,2535.9,1.44945]
[1751938774811,0.78853,2536.0,2535.9,2.12295]
[1751938775112,0.6594,2536.0,2535.9,4.36615]
[1751938775810,1.44793,2536.0,2535.9,4.36615]
[1751938776507,1.44793,2536.0,2535.9,3.40225]
[1751938778715,0.6594,2536.0,2535.9,4.36615]
[1751938778913,0.78847,2536.2,2536.1,0.7885]
[1751938779111,1.44787,2536.2,2536.1,1.462]
[1751938779610,1.44787,2536.2,2536.1,2.8768]
[1751938779812,1.44787,2536.2,2536.1,2.0883]
[1751938780914,1.6877,2536.2,2535.9,3.3635676]
[1751938781112,0.78853,2536.0,2535.9,2.5750276]
[1751938781314,1.44793,2536.0,2535.9,0.6609]
[1751938781712,2.47623,2536.0,2535.9,1.3344]
[1751938782419,2.47623,2536.0,2535.9,0.6609]
[1751938783213,2.47623,2536.0,2535.9,1.3344]
[1751938783519,2.47623,2536.0,2535.9,0.6609]
[1751938783719,2.47623,2536.0,2535.9,1.3344]
[1751938786035,0.78865,2535.6,2535.5,0.78866]
[1751938786227,1.44805,2535.6,2535.5,1.46216]
[1751938786622,0.78865,2535.6,2535.5,1.46216]
[1751938787031,1.44805,2535.6,2535.5,1.46216]
[1751938787331,1.44805,2535.6,2535.5,0.6735]
[1751938787530,0.78868,2535.5,2535.4,2.07059]
[1751938787730,1.44808,2535.5,2535.4,2.74409]
[1751938788632,0.78868,2535.5,2535.4,2.74409]
[1751938789028,1.44808,2535.5,2535.4,2.74409]
[1751938789233,0.78868,2535.5,2535.4,2.74409]
[1751938789433,1.44808,2535.5,2535.4,2.74409]
[1751938790529,1.44808,2535.5,2535.4,4.6582176]
[1751938792734,1.44808,2535.5,2535.4,3.9847176]
[1751938792934,1.44808,2535.5,2535.4,4.6473176]
[1751938793935,0.6594,2535.5,2535.4,4.6473176]
[1751938794130,0.6594,2535.5,2535.4,5.6698176]
[1751938794531,0.7886,2535.8,2535.7,0.78859]
[1751938794833,0.78856,2536.0,2535.7,1.6851]
[1751938795033,0.78856,2536.0,2535.9,0.78854]
[1751938795226,1.49006,2536.0,2535.9,1.45114]
[1751938797332,0.78856,2536.0,2535.9,2.47364]
[1751938797535,0.78852,2536.1,2536.0,0.78851]
[1751938797837,1.49002,2536.1,2536.0,1.45111]
[1751938798641,1.49002,2536.1,2536.0,0.6626]
[1751938798840,2.53342,2536.1,2536.0,0.6626]
[1751938800641,4.15092477,2536.1,2536.0,0.6626]
[1751938801037,0.78856,2535.9,2535.8,1.45508]
[1751938801239,1.49006,2535.9,2535.8,2.11768]
[1751938803639,1.49006,2535.9,2535.8,1.3291]
[1751938803946,2.53346,2535.9,2535.8,0.6665]
[1751938804143,2.53346,2535.9,2535.8,1.3291]
[1751938804340,2.53346,2535.9,2535.8,2.11769]
[1751938804645,1.49006,2535.9,2535.8,2.11769]
[1751938807243,0.78855,2536.0,2535.9,0.78853]
[1751938807446,1.49005,2536.0,2535.9,2.82323]
[1751938809643,0.7015,2536.0,2535.9,3.84573]
[1751938809847,1.49003,2536.0,2535.9,3.84573]
[1751938810051,0.78856,2535.9,2535.8,1.45508]
[1751938810249,1.49006,2535.9,2535.8,2.11768]
[1751938810547,1.49006,2535.9,2535.8,3.40178]
[1751938810750,1.49006,2535.9,2535.8,2.73918]
[1751938810949,2.53346,2535.9,2535.8,0.6665]
[1751938811142,2.53346,2535.9,2535.8,1.45509]
[1751938811342,0.78856,2535.9,2535.8,2.11769]
[1751938811542,1.49006,2535.9,2535.8,2.11769]
[1751938812751,0.78855,2536.0,2535.9,0.78856]
[1751938813050,3.10845695,2536.0,2535.9,2.47366]
[1751938813450,3.10845695,2536.0,2535.9,0.6626]
[1751938813649,3.10845695,2536.0,2535.9,1.45116]
[1751938813850,2.31990695,2536.0,2535.9,1.45116]
[1751938814051,0.7015,2536.0,2535.9,2.47366]
[1751938816555,1.49003,2536.0,2535.9,2.47366]
[1751938817557,0.7015,2536.0,2535.9,2.47366]
[1751938817853,1.0434,2536.4,2536.1,0.78846]
[1751938818158,2.40630744,2536.3,2536.2,0.7049]
[1751938818346,3.10780744,2536.3,2536.2,0.7049]
[1751938818551,1.61787744,2536.3,2536.2,0.7049]
[1751938818748,0.78856,2535.9,2535.8,1.0225]
[1751938818954,0.78859,2535.8,2535.7,0.6674]
[1751938819149,2.7027176,2535.8,2535.7,0.6674]
[1751938819452,0.78878,2535.2,2535.1,4.72808489]
[1751938819654,0.78878,2535.2,2535.1,0.6626]
[1751938820955,0.78878,2535.2,2535.1,1.45141]
[1751938822158,0.78878,2535.2,2535.1,0.78881]
[1751938822359,1.43238,2535.2,2535.1,1.47031]
[1751938823256,1.43238,2535.2,2535.0,0.6674]
[1751938823257,0.78881,2535.1,2535.0,0.6674]
[1751938823754,2.43872,2535.1,2534.6,0.9835]
[1751938823955,0.6436,2535.1,2535.0,0.78883]
[1751938824157,0.6436,2535.1,2535.0,1.47033]
[1751938825161,1.43241,2535.1,2535.0,1.47033]
[1751938825361,1.43241,2535.1,2535.0,0.78883]
[1751938825857,1.43241,2535.1,2535.0,1.47033]
[1751938826058,1.43241,2535.1,2535.0,0.78883]
[1751938826361,1.43241,2535.1,2535.0,1.47033]
[1751938827361,0.78884,2535.0,2534.9,0.78886]
[1751938827968,1.43244,2535.0,2534.9,1.47036]
[1751938828568,0.6436,2535.0,2534.9,1.47036]
[1751938828767,1.43244,2535.0,2534.9,1.47036]
[1751938828971,0.6436,2535.0,2534.9,1.47036]
[1751938829265,0.78881,2535.1,2535.0,0.78882]
[1751938829468,1.43241,2535.1,2535.0,2.14382]
[1751938830266,1.43241,2535.1,2535.0,0.6735]
[1751938830469,1.43241,2535.1,2535.0,1.355]
[1751938830766,1.43241,2535.1,2535.0,0.6735]
[1751938831164,1.43241,2535.1,2535.0,1.355]
[1751938832572,2.43871,2535.1,2535.0,1.355]
[1751938834774,0.7889,2534.9,2534.8,0.78888]
[1751938834974,1.4325,2534.9,2534.8,2.12298]
[1751938835274,2.4388,2534.9,2534.8,1.3341]
[1751938836069,2.4388,2534.9,2534.5,1.3561]
[1751938836271,0.78896,2534.6,2534.5,0.6526]
[1751938836675,4.3529876,2534.6,2534.5,0.6526]
[1751938836874,0.78906,2534.3,2534.2,2.14516]
[1751938837074,0.78906,2534.3,2534.2,3.49856]
[1751938837974,0.78905,2534.4,2534.3,0.78904]
[1751938840275,1.43265,2534.4,2534.3,0.6815]
[1751938840677,0.78906,2534.3,2534.2,2.81707]
[1751938840880,0.78906,2534.3,2534.2,3.49857]
[1751938841477,1.43264,2534.4,2534.2,3.49857]
[1751938841778,1.43264,2534.4,2534.3,0.78906]
[1751938841972,0.6436,2534.4,2534.3,1.47056]
[1751938842372,1.43262,2534.4,2534.3,2.81386]
[1751938842576,1.43262,2534.4,2534.3,2.0248]
[1751938842777,0.78906,2534.3,2534.2,0.6719]
[1751938843077,1.43266,2534.3,2534.2,1.3534]
[1751938843278,0.789,2534.5,2534.2,3.32611]
[1751938843478,0.789,2534.5,2534.4,0.789]
[1751938843679,1.0063,2535.0,2534.4,1.665]
[1751938843877,0.7889,2534.8,2534.7,2.7030576]
[1751938844072,0.7889,2534.8,2534.6,2.16744]
[1751938844073,0.78893,2534.7,2534.6,2.16744]
[1751938844272,1.43253,2534.7,2534.6,2.16744]
[1751938844574,1.43253,2534.7,2534.6,2.84894]
[1751938844771,0.78902,2534.5,2534.4,0.78902]
[1751938844972,0.78902,2534.4,2534.3,2.16754]
[1751938845173,1.43262,2534.4,2534.3,2.84904]
[1751938845569,2.43892,2534.4,2534.3,1.3785]
[1751938845978,0.78906,2534.3,2534.2,0.78906]
[1751938846178,0.78909,2534.2,2534.1,0.78909]
[1751938846481,3.3468176,2534.2,2534.1,0.6815]
[1751938846685,0.78912,2534.1,2534.0,2.19064]
[1751938846979,1.43272,2534.1,2534.0,2.87214]
[1751938847472,1.43272,2534.1,2534.0,2.083]
[1751938847675,2.43902,2534.1,2534.0,1.4015]
[1751938847977,0.78924,2533.7,2533.6,2.19075]
[1751938848177,0.78924,2533.7,2533.6,2.87225]
[1751938848377,0.78924,2533.7,2533.6,2.87226]
[1751938848576,0.78923,2533.8,2533.7,0.78924]
[1751938848779,0.7892,2533.9,2533.8,0.7892]
[1751938848978,0.7892,2533.9,2533.8,2.7979]
[1751938849379,0.7892,2533.9,2533.8,2.0087]
[1751938849380,1.4328,2533.9,2533.8,2.0087]
[1751938850179,0.7892,2533.9,2533.8,2.0087]
[1751938850368,1.4914,2533.9,2533.8,2.0087]
[1751938850570,0.7892,2533.9,2533.8,2.0087]
[1751938850773,1.4914,2533.9,2533.8,2.0087]
[1751938851779,1.4914,2533.9,2533.8,0.6815]
[1751938851981,2.4977,2533.9,2533.8,0.6815]
[1751938852283,2.34678505,2534.8,2533.8,6.6577]
[1751938852477,0.78904,2534.4,2533.9,1.97296]
[1751938852675,0.78906,2534.3,2534.2,0.78906]
[1751938852880,0.78905,2534.4,2534.3,0.78905]
[1751938853075,0.78906,2534.3,2534.2,1.2931]
[1751938853279,0.78918,2533.9,2533.8,1.6577]
[1751938853779,0.78917,2534.0,2533.8,1.6577]
[1751938853980,0.78917,2534.0,2533.9,2.08228]
[1751938855985,0.78914,2534.1,2534.0,0.78913]
[1751938856183,1.49134,2534.1,2534.0,0.6608]
[1751938856785,1.49134,2534.1,2534.0,1.44995]
[1751938857582,1.49134,2534.1,2534.0,2.14295]
[1751938858091,1.49134,2534.1,2534.0,1.3538]
[1751938858281,1.49134,2534.1,2534.0,0.6608]
[1751938858483,2.47704,2534.1,2534.0,0.6608]
[1751938859487,2.47704,2534.1,2534.0,1.3538]
[1751938860486,0.78926,2533.7,2533.5,0.9647]
[1751938860784,0.7022,2533.7,2533.6,3.12627]
[1751938861983,0.78923,2533.8,2533.7,0.78924]
[1751938862179,8.355,2534.0,2533.8,0.78918]
[1751938862390,9.14415,2534.0,2533.9,2.82028]
[1751938862691,9.84635,2534.0,2533.9,2.0311]
[1751938862881,1.49135,2534.0,2533.9,2.82028]
[1751938863088,1.49135,2534.0,2533.9,3.78498]
[1751938863992,1.49135,2534.0,2533.9,2.0311]
[1751938864287,0.78924,2533.7,2533.6,0.6793]
[1751938864483,4.3912676,2533.7,2533.6,1.46857]
[1751938864686,2.47714,2533.7,2533.6,1.3723]
[1751938865184,2.47714,2533.7,2533.6,2.7814]
[1751938865591,0.78937,2533.3,2533.2,1.75409]
[1751938865784,3.6020276,2533.7,2533.3,0.78935]
[1751938865785,0.78936,2533.4,2533.3,0.78935]
[1751938866189,0.78936,2533.4,2533.3,2.19845]
[1751938866395,0.78936,2533.4,2533.3,1.4091]
[1751938866691,0.78936,2533.4,2533.3,2.19847]
[1751938867492,0.78936,2533.4,2533.3,1.4091]
[1751938867690,0.78939,2533.3,2533.1,0.7039]
[1751938867891,0.78932,2533.5,2533.4,0.78932]
[1751938868091,1.49152,2533.5,2533.4,0.78932]
[1751938868286,0.78935,2533.4,2533.3,0.78935]
[1751938868598,0.78935,2533.4,2533.3,1.2794]
[1751938868795,1.49155,2533.4,2533.3,2.06877]
[1751938869099,0.78933,2533.5,2533.4,0.78934]
[1751938869284,1.49153,2533.5,2533.4,0.78934]
[1751938869491,0.78934,2533.4,2533.3,2.06875]
[1751938869891,0.78934,2533.4,2533.3,2.76175]
[1751938870091,0.78933,2533.5,2533.4,0.78934]
[1751938870291,1.49153,2533.5,2533.4,2.76054]
[1751938870893,3.8870976,2533.9,2533.6,0.78926]
[1751938870894,8.368,2533.9,2533.6,0.78926]
[1751938871195,1.49144,2533.7,2533.6,0.693]
[1751938871592,2.47714,2533.7,2533.6,0.693]
[1751938872296,0.78939,2533.3,2533.1,1.2782]
[1751938872599,0.7022,2533.3,2533.2,1.4824]
[1751938872999,1.49157,2533.3,2533.2,2.7606]
[1751938873793,0.9857,2533.6,2533.4,0.78932]
[1751938873999,1.4915,2533.5,2533.4,1.48232]
[1751938874999,1.4915,2533.5,2533.4,0.693]
[1751938875299,0.78934,2533.4,2533.3,2.09334]
[1751938875500,1.49154,2533.4,2533.3,2.09334]
[1751938875694,0.78933,2533.5,2533.4,0.78934]
[1751938875897,1.49153,2533.5,2533.4,2.78634]
[1751938876696,0.7022,2533.5,2533.4,3.75104]
[1751938876902,8.368,2533.9,2533.8,0.7892]
[1751938877098,9.15718,2533.9,2533.8,1.4822]
[1751938877300,0.7022,2533.9,2533.8,1.4822]
[1751938877599,0.7022,2533.9,2533.8,2.8776]
[1751938877802,1.49138,2533.9,2533.8,3.8423]
[1751938878403,0.7022,2533.9,2533.8,3.8423]
[1751938879605,1.49138,2533.9,2533.8,2.8776]
[1751938879904,0.7022,2533.9,2533.8,2.8776]
[1751938880602,8.368,2534.1,2534.0,0.78915]
[1751938880900,0.78915,2534.0,2533.9,3.2894276]
[1751938881104,0.7892,2533.9,2533.8,0.7892]
[1751938881299,1.4806,2533.9,2533.8,0.7892]
[1751938881501,0.7892,2533.9,2533.8,1.4792]
[1751938881698,0.78916,2534.0,2533.9,0.78916]
[1751938881903,1.48056,2534.0,2533.9,2.85446]
[1751938882100,0.6914,2534.0,2533.9,2.85446]
[1751938882304,0.78913,2534.1,2534.0,0.78915]
[1751938882603,0.78915,2534.0,2533.9,2.16446]
[1751938882803,1.48055,2534.0,2533.9,2.16446]
[1751938883000,1.48055,2534.0,2533.9,2.85446]
[1751938883303,1.48055,2534.0,2533.9,2.0653]
[1751938883507,0.78922,2533.8,2533.7,0.78924]
[1751938883705,1.48062,2533.8,2533.7,0.78924]
[1751938884005,1.48062,2533.8,2533.7,1.47924]
[1751938884204,0.6914,2533.8,2533.7,1.47924]
[1751938885410,0.78921,2533.9,2533.7,1.47924]
[1751938885709,0.78921,2533.9,2533.8,0.78921]
[1751938886010,0.78921,2533.8,2533.7,0.78922]
[1751938886204,1.48061,2533.8,2533.7,0.78922]
[1751938886413,0.7892,2533.9,2533.8,0.78921]
[1751938886617,1.4806,2533.9,2533.8,1.47921]
[1751938887012,0.6914,2533.9,2533.8,1.47921]
[1751938887216,0.78917,2534.0,2533.9,0.78918]
[1751938887415,0.78917,2534.0,2533.9,1.47918]
[1751938887615,1.48057,2534.0,2533.9,0.69]
[1751938888413,6.157,2534.5,2534.3,0.78903]
[1751938888623,2.29727321,2534.4,2534.3,2.6041276]
[1751938888917,1.48044,2534.4,2534.3,1.47902]
[1751938889113,0.6914,2534.4,2534.3,1.47902]
[1751938889317,1.48042,2534.4,2534.3,1.47902]
[1751938889619,0.78906,2534.3,2534.2,2.12046]
[1751938889820,1.48046,2534.3,2534.2,2.81046]
[1751938890021,0.6914,2534.3,2534.2,2.81046]
[1751938890810,1.48046,2534.3,2534.2,0.69]
[1751938891019,0.78915,2534.0,2533.9,0.78916]
[1751938891219,0.6914,2534.0,2533.9,1.47916]
[1751938891412,0.6914,2534.0,2533.8,3.12609]
[1751938891617,0.78918,2533.9,2533.8,3.12609]
[1751938891814,0.78918,2533.9,2533.8,2.81059]
[1751938892016,0.78918,2533.9,2533.7,1.0055]
[1751938892017,0.78922,2533.8,2533.7,0.78922]
[1751938892222,1.48062,2533.8,2533.7,1.47922]
[1751938893320,0.6914,2533.8,2533.7,1.47922]
[1751938893523,1.48061,2533.8,2533.7,1.47922]
[1751938894021,0.78921,2533.8,2533.7,1.47922]
[1751938894222,1.48061,2533.8,2533.7,1.47922]
[1751938895123,1.48061,2533.8,2533.7,2.79042]
[1751938895623,0.6914,2533.8,2533.7,2.79042]
[1751938896524,0.78918,2534.0,2533.9,0.78917]
[1751938896721,1.48058,2534.0,2533.9,1.47917]
[1751938897221,1.48058,2534.0,2533.9,2.79037]
[1751938899523,1.48058,2534.0,2533.9,3.79587]
[1751938899821,1.48058,2534.0,2533.9,2.79037]
[1751938900619,1.48058,2534.0,2533.9,1.3112]
[1751938900812,0.6914,2534.0,2533.9,1.47918]
[1751938901014,1.48057,2534.0,2533.9,0.78918]
[1751938901422,1.48057,2534.0,2533.9,1.47918]
[1751938901721,1.48057,2534.0,2533.9,0.78918]
[1751938901922,1.48057,2534.0,2533.9,0.69]
[1751938902919,2.48767,2534.0,2533.9,0.69]
[1751938903226,2.48767,2534.0,2533.8,0.78919]
[1751938903227,0.78924,2533.7,2533.6,1.354]
[1751938903523,0.78927,2533.6,2533.5,0.78928]
[1751938903923,0.78927,2533.6,2533.5,2.83948]
[1751938905832,0.78927,2533.7,2533.6,0.78926]
[1751938906433,0.78927,2533.7,2533.6,1.45286]
[1751938906627,1.48067,2533.7,2533.6,1.45286]
[1751938907028,1.48067,2533.7,2533.6,2.14286]
[1751938909633,1.97319,2533.6,2533.1,5.71699853]
[1751938909834,0.78938,2533.3,2533.2,1.47527]
[1751938910232,0.78938,2533.3,2533.2,0.6859]
[1751938910429,0.78938,2533.3,2533.2,1.3575]
[1751938910630,0.78938,2533.3,2533.2,0.6859]
[1751938910834,0.78943,2533.1,2533.0,1.3833]
[1751938911032,0.78943,2533.1,2533.0,0.6545]
[1751938911231,0.78943,2533.1,2533.0,1.3261]
[1751938911934,0.78943,2533.1,2533.0,2.11556]
[1751938912336,0.78942,2533.2,2533.1,0.78942]
[1751938913231,1.44862,2533.2,2533.1,1.46102]
[1751938915042,1.44862,2533.2,2533.1,0.6716]
[1751938915238,1.7211,2533.2,2532.8,0.78951]
[1751938915436,1.7211,2533.2,2532.9,0.6821]
[1751938915738,0.78948,2533.0,2532.9,0.6821]
[1751938916043,0.78952,2532.8,2532.7,1.3418]
[1751938916232,0.78952,2532.8,2532.7,2.0134]
[1751938916433,0.78952,2532.8,2532.7,1.3418]
[1751938917040,0.78952,2532.8,2532.7,2.0134]
[1751938917738,0.78952,2532.8,2532.7,1.3418]
[1751938917942,0.78952,2532.8,2532.7,2.0134]
[1751938918944,0.78959,2532.6,2532.5,0.6801]
[1751938919443,0.78959,2532.6,2532.5,1.3517]
[1751938920343,0.6592,2532.6,2532.5,2.14131]
[1751938920640,1.44879,2532.6,2532.5,2.14131]
[1751938921043,1.44879,2532.6,2532.5,1.3517]
[1751938922135,1.44879,2532.6,2532.5,2.14132]
[1751938922338,1.44879,2532.6,2532.5,2.7525]
[1751938924148,1.7211,2532.6,2532.2,0.78969]
[1751938924343,0.78968,2532.3,2532.2,1.80819]
[1751938924542,0.78967,2532.4,2532.3,0.78967]
[1751938924745,0.78967,2532.4,2532.3,2.86207]
[1751938924946,1.44887,2532.4,2532.3,2.86207]
[1751938925146,0.78967,2532.4,2532.3,2.0724]
[1751938925347,1.44887,2532.4,2532.3,2.0724]
[1751938927551,0.78973,2532.2,2532.1,0.78973]
[1751938927749,1.85157,2532.4,2532.3,0.78968]
[1751938927936,0.78967,2532.4,2532.3,0.78968]
[1751938928142,0.78968,2532.3,2532.2,0.78968]
[1751938928450,1.44888,2532.3,2532.2,2.77608]
[1751938929545,1.44888,2532.3,2532.2,1.9864]
[1751938930049,0.78968,2532.3,2532.2,1.9864]
[1751938930247,1.44888,2532.3,2532.2,1.9864]
[1751938931052,1.44888,2532.3,2532.2,0.6716]
[1751938931347,2.51078,2532.3,2532.2,0.6716]
[1751938932262,2.51078,2532.3,2531.5,7.36781]
[1751938932263,1.97448,2532.0,2531.3,1.0185]
[1751938932548,1.97448,2532.0,2531.9,1.9141276]
[1751938932549,0.78977,2532.0,2531.9,1.9141276]
[1751938932739,1.44897,2532.0,2531.9,0.6716]
[1751938932944,0.78983,2531.8,2531.7,1.9141276]
[1751938933150,1.2253,2532.6,2531.7,5.5788476]
[1751938933344,0.78969,2532.3,2532.1,2.7038476]
[1751938933543,1.44889,2532.3,2532.2,0.6716]
[1751938934155,1.44889,2532.3,2532.2,1.46131]
[1751938934358,1.44889,2532.3,2532.2,0.6716]
[1751938934651,0.6592,2532.3,2532.2,2.47981]
[1751938935249,0.78957,2532.7,2532.6,0.78958]
[1751938935546,1.44877,2532.7,2532.6,1.46118]
[1751938936053,0.6592,2532.7,2532.6,1.46116]
[1751938936355,1.44875,2532.7,2532.6,0.6716]
[1751938936652,0.6592,2532.7,2532.6,1.46119]
[1751938936847,0.6592,2532.7,2532.6,2.47969]